bitfinex-derivatives/quotes_SOLF0:USTF0_20260304
["timestamp","ask_amount","ask_price","bid_price","bid_amount"]
[1772650064517,10.01179532,92.125,92.03,7.28723466]
[1772650064713,8.23952234,92.123,92.05,7.28723466]
[1772650064918,8.22279472,92.114,92.05,7.28723466]
[1772650065117,8.22279472,92.114,92.03,7.28723466]
[1772650065317,8.22279472,92.114,92.009,19.77298134]
[1772650065519,8.22279472,92.114,92.02,7.28723466]
[1772650065726,8.22280039,92.112,92.02,7.28723466]
[1772650065925,16.24129057,92.112,92.02,7.28723466]
[1772650066120,8.22280039,92.111,92.02,7.28723466]
[1772650066518,9.77,92.085,92.034,9.775]
[1772650068123,8.22280039,92.087,92.042,9.774]
[1772650069320,8.24426311,92.085,92.034,9.775]
[1772650070926,7.28723466,92.13,92.026,9.776]
[1772650070927,8.25872125,92.083,92.026,9.776]
[1772650071425,8.25872125,92.083,92.02,7.28723466]
[1772650072123,8.25872125,92.083,92.03,7.28723466]
[1772650074428,8.25872125,92.083,92.034,9.775]
[1772650075730,7.28723466,92.13,92.03,7.28723466]
[1772650075731,8.26169858,92.082,92.03,7.28723466]
[1772650076633,8.26169858,92.082,92.024,9.776]
[1772650077027,8.26789279,92.079,92.024,9.776]
[1772650077235,8.26789279,92.079,91.99,7.28723466]
[1772650077624,8.26789279,92.051,91.99,7.28723466]
[1772650078026,8.26789279,92.051,91.996,9.779]
[1772650078232,8.26789279,92.051,91.97,7.28723466]
[1772650079432,8.27981064,92.041,91.988,9.78]
[1772650080429,8.27981064,92.041,91.98,7.28723466]
[1772650081135,8.39199101,92.064,92.0,7.28723466]
[1772650082033,8.39148746,92.062,92.011,9.777]
[1772650084132,9.772,92.059,92.0,7.28723466]
[1772650084334,8.4146307,92.058,91.98,7.28723466]
[1772650085036,8.37626968,92.045,91.993,9.779]
[1772650085732,7.28723466,92.07,91.993,9.779]
[1772650085733,8.37582878,92.043,91.993,9.779]
[1772650086240,8.37582878,92.043,92.0,9.779]
[1772650087131,8.37582878,92.043,91.98,7.28723466]
[1772650088434,8.37582878,92.043,91.996,9.779]
[1772650088938,8.37582878,92.043,91.98,7.28723466]
[1772650090436,8.37582878,92.043,91.995,9.779]
[1772650091441,8.37582878,92.043,92.002,9.778]
[1772650092038,8.37119222,92.042,91.96,7.28723466]
[1772650092642,8.37119222,92.042,91.98,7.28723466]
[1772650093039,8.37119222,92.042,91.995,9.779]
[1772650095740,8.37119222,92.042,91.98,7.28723466]
[1772650095940,8.36798004,92.033,91.941,19.77298134]
[1772650096140,8.36798004,92.033,91.94,276.56163547]
[1772650096542,8.36798004,92.033,91.95,7.28816806]
[1772650097649,8.27563511,92.028,91.978,9.781]
[1772650097844,8.27563511,92.028,91.97,7.28816806]
[1772650099351,8.27563511,92.028,91.985,9.78]
[1772650099648,9.776,92.026,91.976,9.781]
[1772650099849,8.27563511,92.028,91.976,9.781]
[1772650100049,8.27563511,92.028,91.95,7.28816806]
[1772650100251,8.26958284,92.018,91.967,9.782]
[1772650100445,8.26958284,92.018,91.97,3.40132386]
[1772650101041,8.26958284,92.018,91.94,269.27440081]
[1772650101042,8.26007379,92.016,91.96,3.40132386]
[1772650101854,13.49233388,92.072,91.94,269.27440081]
[1772650101855,8.25998473,91.999,91.94,272.67572467]
[1772650102148,8.25998473,91.989,91.94,269.27440081]
[1772650102349,8.25998473,91.989,91.94,272.67572467]
[1772650102552,8.25998473,91.989,91.94,269.27440081]
[1772650103054,8.19121946,91.985,91.892,19.77298134]
[1772650103347,8.19121946,91.985,91.9,7.29270892]
[1772650103651,8.19121946,91.982,91.918,9.787]
[1772650103854,8.19121946,91.982,91.9,7.29270892]
[1772650104245,8.19121946,91.982,91.92,7.29270892]
[1772650104851,8.21997115,92.004,91.945,9.785]
[1772650105051,8.21997115,92.004,91.881,152.316]
[1772650105052,8.21997115,92.004,91.94,7.29270892]
[1772650105449,9.778,92.003,91.951,9.784]
[1772650105651,8.21997115,92.002,91.94,7.29270892]
[1772650105956,8.21997115,92.002,91.959,9.783]
[1772650106148,8.21976393,92.018,91.959,9.783]
[1772650106350,8.21976393,92.018,91.94,7.29270892]
[1772650106550,8.21976393,92.016,91.92,7.29270892]
[1772650106755,8.21976393,92.016,91.94,7.29270892]
[1772650107556,8.21976393,92.016,91.92,7.29270892]
[1772650108055,8.21976393,92.016,91.94,7.29270892]
[1772650108850,8.1536195,92.005,91.94,7.29270892]
[1772650109353,8.1536195,92.005,91.914,19.576]
[1772650109554,8.1536195,92.005,91.94,7.29270892]
[1772650109752,8.1536195,92.005,91.952,9.784]
[1772650110052,8.1536195,92.005,91.94,7.29270892]
[1772650112863,8.1536195,92.005,91.958,9.783]
[1772650113362,8.16751175,92.003,91.947,9.784]
[1772650113759,8.16763797,92.039,91.94,7.29270892]
[1772650113954,9.777,92.015,91.94,7.29270892]
[1772650114163,8.16763797,92.014,91.94,7.29270892]
[1772650114560,8.16763797,92.014,91.969,9.782]
[1772650115260,8.16763797,92.014,91.961,9.783]
[1772650115757,8.16763797,92.014,91.969,9.782]
[1772650116063,8.16441804,92.076,91.97,7.29270892]
[1772650117160,8.16880956,92.075,91.97,7.29270892]
[1772650117355,8.16880956,92.038,91.97,7.29270892]
[1772650118154,8.16880956,92.038,91.99,9.78]
[1772650118562,8.16892837,92.035,91.99,9.78]
[1772650118760,8.16892837,92.035,91.998,9.779]
[1772650118963,8.16892837,92.035,91.97,7.29270892]
[1772650119665,8.17177046,92.032,91.97,7.29270892]
[1772650119861,8.17177046,92.032,91.95,7.29270892]
[1772650120163,8.17188085,92.013,91.961,9.783]
[1772650121458,8.16866755,92.011,91.961,9.783]
[1772650122052,8.16878224,92.009,91.95,7.29270892]
[1772650122261,8.16878224,92.009,91.933,262.38537607]
[1772650122658,7.99505219,92.037,91.933,262.38537607]
[1772650122659,8.16878224,92.001,91.933,262.38537607]
[1772650123258,8.16878224,92.001,91.959,9.783]
[1772650124563,8.16878224,92.001,91.96,3.40196546]
[1772650125460,8.16878224,92.001,91.97,3.40196546]
[1772650126559,8.20417204,92.038,91.99,3.40196546]
[1772650126755,8.20417204,92.038,92.0,3.40196546]
[1772650127664,8.2059799,92.021,91.98,3.40196546]
[1772650127868,8.2059799,92.039,92.0,3.40196546]
[1772650130354,33.66377578,92.148,91.99,3.40196546]
[1772650130355,8.2196887,92.037,91.99,3.40196546]
[1772650130562,8.2196887,92.037,91.96,7.2865959]
[1772650130754,8.2196887,92.037,91.94,7.2865959]
[1772650131458,8.21744461,92.003,91.951,9.784]
[1772650132264,8.21745755,92.0,91.951,9.784]
[1772650133764,8.21745755,92.0,91.958,9.783]
[1772650134666,8.21811917,92.016,91.963,9.783]
[1772650134868,8.21586525,92.054,91.96,7.2865959]
[1772650135068,8.21586525,92.053,91.96,7.2865959]
[1772650135568,9.776,92.029,91.977,9.781]
[1772650136259,9.776,92.029,91.981,9.781]
[1772650138568,8.21586525,92.032,91.99,9.78]
[1772650138868,8.21586525,92.032,91.98,7.2865959]
[1772650140167,8.21586525,92.032,91.981,9.781]
[1772650141670,8.21586525,92.032,91.989,9.78]
[1772650143069,8.35009152,92.051,91.999,9.779]
[1772650143967,8.34988473,92.042,91.989,9.78]
[1772650144765,8.34988473,92.042,91.997,9.779]
[1772650145263,8.34988473,92.042,91.97,7.2865959]
[1772650145264,8.34672518,92.057,91.99,7.2865959]
[1772650147163,8.37508488,92.055,91.999,9.779]
[1772650147668,8.37508488,92.05,91.999,9.779]
[1772650147871,8.37508488,92.05,91.991,9.78]
[1772650148065,8.37508488,92.05,91.99,7.2865959]
[1772650148370,8.37508488,92.05,91.999,9.779]
[1772650148969,8.37477913,92.066,91.99,7.2865959]
[1772650149272,8.37477913,92.078,92.01,7.2865959]
[1772650149471,8.37477913,92.078,92.028,9.776]
[1772650149667,8.37477913,92.095,92.03,7.2865959]
[1772650149865,8.37454604,92.123,92.05,7.2865959]
[1772650150874,8.40591904,92.114,92.061,9.772]
[1772650151577,8.40591904,92.114,92.05,7.2865959]
[1772650151778,8.40591904,92.149,92.05,7.2865959]
[1772650152663,8.40564326,92.127,92.05,7.2865959]
[1772650153670,9.766,92.125,92.071,9.771]
[1772650153877,8.47937574,92.124,92.05,7.2865959]
[1772650154476,8.47937574,92.121,92.07,9.771]
[1772650155174,8.47937574,92.121,92.078,9.77]
[1772650155364,8.47937574,92.121,92.05,7.2865959]
[1772650156467,8.47937574,92.121,92.07,3.3936639]
[1772650156676,8.47937574,92.121,92.08,3.3936639]
[1772650158477,8.47937574,92.121,92.072,9.771]
[1772650159669,8.47937574,92.121,92.062,9.772]
[1772650159979,8.47937574,92.121,92.06,7.27057136]
[1772650161075,8.47937574,92.121,92.066,9.772]
[1772650161378,8.47937574,92.121,92.06,7.27057136]
[1772650161580,8.48723061,92.159,92.08,7.27057136]
[1772650162077,7.27057136,92.16,92.08,7.27057136]
[1772650162078,8.48687328,92.137,92.087,9.769]
[1772650163080,8.49824505,92.136,92.069,9.771]
[1772650164483,8.49788026,92.12,92.069,9.771]
[1772650164978,8.53814584,92.135,92.06,7.27057136]
[1772650165183,8.53814584,92.135,92.08,7.27057136]
[1772650166485,8.53814584,92.135,92.085,9.77]
[1772650166687,8.53814584,92.135,92.06,7.27057136]
[1772650166882,8.53814584,92.135,92.09,9.769]
[1772650167080,8.53814584,92.135,92.08,7.27057136]
[1772650167786,8.53814584,92.135,92.089,9.769]
[1772650168282,8.57859839,92.131,92.08,7.27057136]
[1772650168488,8.57859839,92.131,92.079,9.77]
[1772650169386,8.61621008,92.128,92.071,9.771]
[1772650170386,7.27057136,92.16,92.071,9.771]
[1772650170387,8.61572431,92.126,92.071,9.771]
[1772650172488,8.61276619,92.124,92.071,9.771]
[1772650174394,8.61276619,92.124,92.082,9.77]
[1772650174890,8.61276619,92.124,92.06,7.27057136]
[1772650175086,8.62304727,92.122,92.075,9.771]
[1772650176294,8.62304727,92.122,92.06,7.27057136]
[1772650177290,8.62304727,92.122,92.08,9.77]
[1772650178394,8.62304727,92.122,92.06,7.27057136]
[1772650178594,8.62304727,92.122,92.09,3.392358]
[1772650178991,8.62304727,92.122,92.08,3.392358]
[1772650180097,8.62304727,92.122,92.09,3.392358]
[1772650185102,8.58883599,92.137,92.1,3.392358]
[1772650185304,8.58883599,92.15,92.12,3.392358]
[1772650185503,8.58883599,92.15,92.13,3.392358]
[1772650185998,8.58845344,92.189,92.13,3.392358]
[1772650186204,8.58845344,92.181,92.16,3.392358]
[1772650186394,8.58845344,92.181,92.15,3.392358]
[1772650187403,8.58845344,92.181,92.13,3.392358]
[1772650187703,6.90141948,92.172,92.13,3.392358]
[1772650188901,6.90141948,92.172,92.14,3.392358]
[1772650189797,9.759,92.181,92.14,3.392358]
[1772650190000,16.64321832,92.181,92.14,3.392358]
[1772650190202,6.88421832,92.181,92.15,3.392358]
[1772650190498,6.88421832,92.181,92.16,3.392358]
[1772650191105,6.88126407,92.205,92.17,3.392358]
[1772650191504,6.88126407,92.205,92.16,3.392358]
[1772650193105,6.88126407,92.205,92.17,3.392358]
[1772650193603,6.93793661,92.199,92.15,3.392358]
[1772650194199,3.392358,92.2,92.15,3.392358]
[1772650194200,6.93722882,92.192,92.15,3.392358]
[1772650194399,6.93722882,92.192,92.135,9.764]
[1772650194400,6.93722882,92.192,92.14,3.392358]
[1772650194597,6.93722882,92.192,92.15,3.392358]
[1772650194798,6.93722882,92.192,92.097,20.00976681]
[1772650195001,6.93722882,92.192,92.16,3.392358]
[1772650195402,6.93722882,92.192,92.15,3.392358]
[1772650196406,6.92793414,92.209,92.17,3.392358]
[1772650196707,6.92793414,92.209,92.16,3.392358]
[1772650197504,6.92793414,92.209,92.17,3.392358]
[1772650197905,6.92478403,92.205,92.17,3.392358]
[1772650199311,3.392358,92.26,92.19,0.000358]
[1772650200402,9.756,92.216,92.19,0.000358]
[1772650201010,9.756,92.216,92.111,19.534]
[1772650201011,7.93595681,92.265,92.21,0.000358]
[1772650201207,4.64757793,92.264,92.21,0.000358]
[1772650201408,4.64757793,92.264,92.168,9.761]
[1772650201606,4.64757793,92.244,92.2,0.000358]
[1772650202113,4.64757793,92.222,92.2,0.000358]
[1772650202416,4.64757793,92.222,92.21,0.000358]
[1772650203012,4.64757793,92.22,92.109,2.16824029]
[1772650203214,4.64757793,92.22,92.19,0.000358]
[1772650204517,4.64757793,92.209,92.19,0.000358]
[1772650205111,4.64757793,92.203,92.153,2.16824029]
[1772650205323,4.64757793,92.203,92.18,0.000358]
[1772650205517,4.64757793,92.203,92.153,2.16824029]
[1772650206418,9.758,92.196,92.153,2.16824029]
[1772650208618,4.64757793,92.203,92.153,2.16824029]
[1772650212026,4.55871382,92.201,92.153,2.16824029]
[1772650213518,9.758,92.199,92.153,2.16824029]
[1772650213726,14.31671382,92.199,92.153,2.16824029]
[1772650213918,4.55871382,92.198,92.153,2.16824029]
[1772650216622,4.55871382,92.198,92.155,9.762]
[1772650218022,4.55871382,92.198,92.14,1.94383734]
[1772650218423,9.759,92.19,92.142,9.764]
[1772650218622,4.43124465,92.237,92.143,1.9208584]
[1772650220230,4.43124465,92.206,92.156,1.88903969]
[1772650220525,4.43124465,92.219,92.156,1.88903969]
[1772650221520,9.756,92.218,92.168,1.97392922]
[1772650222227,14.18724465,92.218,92.168,1.97392922]
[1772650222929,9.756,92.216,92.168,1.97392922]
[1772650223528,9.756,92.216,92.17,9.761]
[1772650224427,4.43124465,92.217,92.171,2.00676812]
[1772650224622,4.43124465,92.23,92.171,2.00676812]
[1772650224833,4.43124465,92.279,92.171,2.00676812]
[1772650225128,4.43124465,92.254,92.198,2.00013831]
[1772650226128,4.43124465,92.254,92.165,19.523]
[1772650226129,4.43124465,92.254,92.201,1.97032836]
[1772650226536,4.10654538,92.299,92.201,1.97032836]
[1772650226734,4.10654538,92.273,92.221,9.755]
[1772650227436,4.10654538,92.273,92.23,9.754]
[1772650227631,134.04291682,92.33,92.186,19.518]
[1772650227632,4.10654538,92.299,92.231,2.00074255]
[1772650229233,4.10654538,92.343,92.248,1.93246667]
[1772650229532,4.10654538,92.385,92.273,1.93246667]
[1772650229727,4.10654538,92.385,92.305,9.746]
[1772650229924,4.10654538,92.385,92.302,1.93340315]
[1772650230338,4.10654538,92.384,92.285,1.92318529]
[1772650230835,4.10654538,92.36,92.285,1.92318529]
[1772650232738,4.10654538,92.358,92.267,2.7068984]
[1772650233238,4.10654538,92.352,92.267,2.7068984]
[1772650233929,4.10654538,92.343,92.282,9.749]
[1772650234136,4.10654538,92.343,92.283,2.68727152]
[1772650235345,4.10654538,92.343,92.209,2.77672724]
[1772650235934,7.9117582,92.399,92.258,2.77661822]
[1772650235935,4.10654538,92.339,92.258,2.77661822]
[1772650237636,4.10654538,92.337,92.258,2.77661822]
[1772650238247,4.10654538,92.335,92.258,2.77661822]
[1772650238839,4.10654538,92.332,92.266,3.04894804]
[1772650240136,4.10654538,92.327,92.266,3.04894804]
[1772650240543,4.10654538,92.327,92.204,3.03021631]
[1772650240737,4.10654538,92.292,92.216,12.78621631]
[1772650240936,4.10654538,92.292,92.217,3.04073784]
[1772650241143,4.10654538,92.28,92.217,3.04073784]
[1772650241343,4.10654538,92.28,92.197,3.03173931]
[1772650241742,4.10654538,92.278,92.203,9.757]
[1772650243449,4.10654538,92.264,92.213,9.756]
[1772650244746,4.10654538,92.264,92.181,3.09668514]
[1772650245845,4.10654538,92.262,92.201,9.757]
[1772650246048,4.10654538,92.262,92.202,3.11260616]
[1772650246944,4.10654538,92.279,92.202,3.11260616]
[1772650247748,4.10654538,92.278,92.215,9.756]
[1772650248846,4.34954102,92.276,92.218,9.755]
[1772650249848,4.34954102,92.276,92.165,19.523]
[1772650249849,4.34954102,92.276,92.226,9.755]
[1772650250042,4.34954102,92.276,92.226,3.28389881]
[1772650250244,4.34954102,92.37,92.226,3.28389881]
[1772650250644,4.34954102,92.318,92.265,9.751]
[1772650250956,4.34954102,92.335,92.253,3.27547075]
[1772650252148,4.34954102,92.335,92.278,3.26483629]
[1772650252948,4.34954102,92.333,92.27,9.75]
[1772650253450,4.34954102,92.329,92.191,3.25642407]
[1772650254154,4.34954102,92.29,92.231,9.754]
[1772650254345,4.34954102,92.29,92.232,3.23876319]
[1772650255448,4.34954102,92.29,92.233,9.754]
[1772650255646,4.34954102,92.29,92.232,3.23876319]
[1772650257349,4.34954102,92.29,92.232,12.99276319]
[1772650258755,4.34954102,92.29,92.233,3.22245119]
[1772650260455,4.34954102,92.309,92.25,9.752]
[1772650261658,4.34954102,92.305,92.241,9.753]
[1772650262555,4.34954102,92.287,92.232,9.754]
[1772650262858,4.34954102,92.287,92.194,3.18863335]
[1772650263150,4.34954102,92.283,92.229,9.754]
[1772650263757,4.34954102,92.28,92.229,9.754]
[1772650263966,4.34954102,92.28,92.219,9.755]
[1772650265362,4.34954102,92.268,92.211,3.18138057]
[1772650266155,4.34954102,92.263,92.194,3.24987136]
[1772650266757,4.34954102,92.26,92.194,3.24987136]
[1772650267356,4.34954102,92.26,92.22,9.755]
[1772650267758,4.34954102,92.26,92.209,3.24264183]
[1772650267954,4.34954102,92.26,92.211,9.756]
[1772650268657,4.34954102,92.26,92.212,3.16061643]
[1772650268862,9.751,92.259,92.212,3.16061643]
[1772650269063,14.10054102,92.259,92.212,3.16061643]
[1772650269464,4.34954102,92.255,92.197,9.758]
[1772650270359,9.752,92.254,92.197,9.758]
[1772650270556,4.34954102,92.253,92.197,9.758]
[1772650271352,9.752,92.252,92.197,9.758]
[1772650271565,4.34954102,92.251,92.197,9.758]
[1772650272461,4.34954102,92.249,92.197,9.758]
[1772650273968,4.34954102,92.249,92.205,9.757]
[1772650276260,4.34954102,92.249,92.181,3.0398964]
[1772650276261,4.34954102,92.247,92.181,3.0398964]
[1772650276970,4.34954102,92.259,92.204,9.757]
[1772650277371,4.34954102,92.259,92.198,2.79969835]
[1772650277372,9.753,92.24,92.198,2.79969835]
[1772650277671,4.34954102,92.259,92.198,2.79969835]
[1772650279572,4.16483267,92.254,92.206,9.757]
[1772650280667,4.16483267,92.252,92.198,2.79969835]
[1772650281976,9.752,92.249,92.199,2.32563613]
[1772650282473,4.16483267,92.252,92.2,9.757]
[1772650282474,9.753,92.243,92.2,9.757]
[1772650284072,9.754,92.234,92.199,2.32563613]
[1772650284278,4.16483267,92.238,92.184,2.30785549]
[1772650285374,9.755,92.226,92.184,2.30785549]
[1772650285677,4.16483267,92.238,92.145,2.2965455]
[1772650285975,3.99264009,92.247,92.175,2.32053141]
[1772650286172,3.99264009,92.261,92.175,2.32053141]
[1772650286371,3.99264009,92.261,92.215,9.756]
[1772650286572,3.99264009,92.261,92.177,13.13732408]
[1772650286573,3.99264009,92.261,92.208,2.31536592]
[1772650287481,9.751,92.26,92.21,2.31024253]
[1772650288381,9.751,92.26,92.212,9.756]
[1772650290984,3.99264009,92.283,92.217,2.24166984]
[1772650291373,3.99264009,92.301,92.217,2.24166984]
[1772650291575,3.99264009,92.301,92.248,2.23679426]
[1772650291982,9.746,92.306,92.248,2.23679426]
[1772650292485,3.99264009,92.316,92.261,2.19050217]
[1772650292679,3.99264009,92.363,92.261,2.19050217]
[1772650293589,3.99264009,92.335,92.275,2.18577644]
[1772650293985,3.99264009,92.325,92.259,2.22919864]
[1772650294186,3.99264009,92.325,92.241,2.22919864]
[1772650294989,9.746,92.313,92.244,2.22920922]
[1772650295692,3.99264009,92.322,92.253,2.22455382]
[1772650296089,3.99264009,92.31,92.253,2.22455382]
[1772650297392,9.746,92.309,92.253,2.22455382]
[1772650298993,13.73864009,92.309,92.253,2.22455382]
[1772650300993,3.99264009,92.308,92.253,2.22455382]
[1772650301897,3.99264009,92.303,92.23,2.25248813]
[1772650303388,3.99264009,92.295,92.239,9.753]
[1772650305595,9.748,92.294,92.239,9.753]
[1772650305801,3.99264009,92.293,92.23,2.25248813]
[1772650307401,9.749,92.283,92.231,9.754]
[1772650307591,3.99264009,92.282,92.231,9.754]
[1772650307897,3.99264009,92.282,92.214,2.28141077]
[1772650309602,3.88761755,92.271,92.215,9.756]
[1772650310198,3.88761755,92.271,92.222,9.755]
[1772650310394,3.88761755,92.271,92.214,2.28141077]
[1772650310595,3.88761755,92.289,92.214,2.28141077]
[1772650311102,3.88761755,92.289,92.23,1.87284118]
[1772650313406,9.748,92.286,92.235,9.754]
[1772650314105,3.88761755,92.285,92.235,9.754]
[1772650314305,3.88761755,92.282,92.23,1.87284118]
[1772650314899,3.88761755,92.282,92.226,9.755]
[1772650315407,3.88761755,92.279,92.226,9.755]
[1772650316007,19.49,92.323,92.215,1.81660441]
[1772650316008,3.88761755,92.275,92.217,9.756]
[1772650316911,10.05340957,92.321,92.217,9.756]
[1772650316912,3.88761755,92.263,92.217,9.756]
[1772650317206,3.88761755,92.263,92.207,9.757]
[1772650318604,3.88761755,92.259,92.184,1.81204124]
[1772650319008,3.88761755,92.236,92.184,1.81204124]
[1772650320309,3.88761755,92.236,92.185,9.759]
[1772650321606,3.88761755,92.234,92.185,9.759]
[1772650321910,3.88761755,92.234,92.138,19.529]
[1772650321911,3.88761755,92.234,92.175,11.77629938]
[1772650322810,3.88761755,92.234,92.178,2.01309705]
[1772650323704,3.88761755,92.234,92.18,9.76]
[1772650324010,3.88761755,92.234,92.178,2.01309705]
[1772650324807,3.88761755,92.279,92.182,1.98439472]
[1772650325314,9.751,92.259,92.211,9.756]
[1772650325517,13.63861755,92.259,92.211,9.756]
[1772650327317,3.88761755,92.241,92.194,9.758]
[1772650328020,9.753,92.238,92.189,1.98218093]
[1772650328216,3.88761755,92.237,92.189,1.98218093]
[1772650328516,9.754,92.234,92.189,1.98218093]
[1772650328818,3.88761755,92.234,92.178,1.97873208]
[1772650329114,9.754,92.232,92.178,1.97873208]
[1772650329910,9.754,92.232,92.18,1.95699897]
[1772650331014,9.753,92.241,92.189,1.95398463]
[1772650331218,3.88761755,92.24,92.143,1.95109853]
[1772650332122,9.755,92.223,92.177,1.94916943]
[1772650332322,3.88761755,92.24,92.177,1.94916943]
[1772650332524,3.88761755,92.282,92.177,1.94916943]
[1772650332725,3.88761755,92.266,92.198,1.94916943]
[1772650334016,9.752,92.256,92.2,9.757]
[1772650334222,3.88761755,92.266,92.201,1.94151578]
[1772650335224,9.751,92.265,92.217,9.756]
[1772650335425,3.88761755,92.266,92.218,1.93866989]
[1772650336523,3.88761755,92.263,92.2,1.92813226]
[1772650337519,7.90062101,92.302,92.207,9.757]
[1772650337520,3.88761755,92.258,92.207,9.757]
[1772650338422,3.87759618,92.254,92.207,9.757]
[1772650338926,9.752,92.251,92.2,1.92813226]
[1772650339721,3.87759618,92.254,92.202,2.33771274]
[1772650341421,3.87759618,92.254,92.208,9.757]
[1772650341622,3.87759618,92.254,92.209,2.33571799]
[1772650341829,9.75,92.267,92.209,2.33571799]
[1772650342031,3.87759618,92.268,92.22,9.755]
[1772650342328,3.87759618,92.268,92.166,2.34887504]
[1772650342526,3.87759618,92.268,92.203,9.757]
[1772650343528,9.752,92.254,92.203,9.757]
[1772650344023,13.62959618,92.254,92.203,9.757]
[1772650344427,3.87759618,92.251,92.199,2.34887504]
[1772650345637,3.87759618,92.246,92.199,2.34887504]
[1772650346034,3.87759618,92.246,92.2,9.757]
[1772650346736,3.80978038,92.297,92.216,9.756]
[1772650346931,3.80978038,92.297,92.201,2.30967189]
[1772650348640,3.80978038,92.267,92.215,9.756]
[1772650349341,9.751,92.266,92.221,9.755]
[1772650349640,3.80978038,92.267,92.221,9.755]
[1772650349839,3.80978038,92.267,92.214,2.30423509]
[1772650350233,3.80978038,92.267,92.227,9.755]
[1772650353245,3.80978038,92.266,92.214,2.30423509]
[1772650354449,9.752,92.253,92.214,2.30423509]
[1772650354644,3.80978038,92.252,92.199,2.20920977]
[1772650355549,3.80978038,92.246,92.199,2.20920977]
[1772650356350,3.80978038,92.246,92.2,9.757]
[1772650357752,3.80978038,92.246,92.208,9.757]
[1772650358057,3.80978038,92.292,92.209,2.18647967]
[1772650358557,9.752,92.255,92.209,2.18647967]
[1772650359850,13.56178038,92.255,92.209,2.18647967]
[1772650361960,3.80978038,92.255,92.211,9.756]
[1772650363951,3.80978038,92.269,92.222,2.17472341]
[1772650365349,9.75,92.267,92.222,2.17472341]
[1772650365554,3.80978038,92.266,92.222,2.17472341]
[1772650365754,3.80978038,92.266,92.224,9.755]
[1772650367058,13.56078038,92.264,92.224,9.755]
[1772650367260,3.80978038,92.263,92.224,9.755]
[1772650367562,3.80978038,92.263,92.22,2.16069749]
[1772650369359,3.80978038,92.263,92.222,9.755]
[1772650370067,3.80978038,92.263,92.223,2.24054785]
[1772650371262,9.75,92.272,92.224,9.755]
[1772650371468,3.69981432,92.277,92.225,2.2386459]
[1772650372464,3.69981432,92.277,92.227,2.23903729]
[1772650373462,3.69981432,92.277,92.23,9.754]
[1772650373667,3.69981432,92.277,92.231,2.23717827]
[1772650375372,9.749,92.276,92.233,9.754]
[1772650377466,3.69981432,92.273,92.231,2.23717827]
[1772650379076,3.69981432,92.268,92.226,9.755]
[1772650379467,3.69981432,92.268,92.226,11.96933342]
[1772650380775,3.69981432,92.284,92.227,2.28620755]
[1772650382577,9.748,92.291,92.249,9.752]
[1772650384777,3.69981432,92.29,92.249,9.752]
[1772650385176,3.69981432,92.288,92.249,9.752]
[1772650385476,3.69981432,92.288,92.246,2.33798424]
[1772650386183,3.69981432,92.288,92.247,9.752]
[1772650387284,181.36459824,92.303,92.255,2.2178674]
[1772650387583,3.69981432,92.302,92.255,2.2178674]
[1772650388283,3.69981432,92.302,92.268,9.75]
[1772650388680,3.69981432,92.302,92.255,2.2178674]
[1772650389484,3.69981432,92.302,92.26,9.751]
[1772650390777,3.69981432,92.321,92.261,2.22076391]
[1772650391278,3.69981432,92.312,92.264,9.751]
[1772650391479,3.69981432,92.312,92.224,2.2192517]
[1772650392183,3.69981432,92.31,92.255,11.9841042]
[1772650393387,3.69981432,92.307,92.259,9.751]
[1772650394688,3.69981432,92.305,92.259,9.751]
[1772650395289,3.69981432,92.305,92.262,9.751]
[1772650395584,3.69981432,92.34,92.263,2.26204626]
[1772650395788,7.94317868,92.38,92.302,4.02526571]
[1772650396084,7.94317868,92.399,92.302,4.02526571]
[1772650396283,10.12821707,92.424,92.302,4.02526571]
[1772650396484,7.94317868,92.423,92.302,4.02526571]
[1772650396682,9.738,92.388,92.328,9.744]
[1772650397087,7.94317868,92.421,92.329,4.02526571]
[1772650397283,9.737,92.398,92.337,4.02526571]
[1772650397789,3.69981432,92.397,92.337,4.02526571]
[1772650397985,3.69981432,92.397,92.288,4.02526571]
[1772650398485,3.69981432,92.397,92.338,9.743]
[1772650398981,3.69981432,92.397,92.331,3.91128117]
[1772650399581,3.69981432,92.397,92.348,3.91128117]
[1772650399782,3.80976236,92.455,92.348,3.91128117]
[1772650399991,3.80976236,92.438,92.366,13.65128117]